fUSD/lending_fUSD_20260126
["ID","MTS","AMOUNT","RATE_DAILY","PERIOD"]
[403586888,1769389905790,-500.0,0.00017808,2]
[403586889,1769389905799,-500.0,0.00017808,2]
[403586890,1769389905808,-500.0,0.00017808,2]
[403586891,1769389905817,-500.0,0.00017808,2]
[403586892,1769389905826,-500.0,0.00017808,2]
[403586893,1769389905835,-500.0,0.00017808,2]
[403586894,1769389905845,-500.0,0.00017808,2]
[403586895,1769389905854,-500.0,0.00017808,2]
[403586896,1769389905863,-500.0,0.00017808,2]
[403586897,1769389905872,-500.0,0.00017808,2]
[403586898,1769389905881,-500.0,0.00017808,2]
[403586899,1769389905890,-500.0,0.00017808,2]
[403586900,1769389905899,-621.04,0.00017808,2]
[403586901,1769389905908,-500.0,0.00017808,2]
[403586902,1769389905917,-500.0,0.00017808,2]
[403586903,1769389905927,-500.0,0.00017808,2]
[403586904,1769389905935,-500.0,0.00017808,2]
[403586905,1769389905944,-2234.97,0.00017808,2]
[403586906,1769389905953,-500.0,0.00017808,2]
[403586907,1769389905962,-500.0,0.00017808,2]
[403586908,1769389905971,-500.0,0.00017808,2]
[403586909,1769389905980,-500.0,0.00017808,2]
[403586910,1769389905990,-500.0,0.00017808,2]
[403586911,1769389905999,-905.15,0.00017808,2]
[403586912,1769389906009,-500.0,0.00017808,2]
[403586913,1769389906021,-500.0,0.00017808,2]
[403586914,1769389906029,-1362.52,0.00017808,2]
[403586915,1769389906039,-500.0,0.00017808,2]
[403586916,1769389906048,-500.0,0.00017808,2]
[403586917,1769389906063,-500.0,0.00017808,2]
[403586918,1769389906073,-500.0,0.00017808,2]
[403586919,1769389906083,-270.16582749,0.00017808,2]
[403586920,1769389906095,-500.0,0.00017808,2]
[403586921,1769389906106,-500.0,0.00017808,2]
[403586922,1769389906115,-500.0,0.00017808,2]
[403586923,1769389906125,-500.0,0.00017808,2]
[403586924,1769389906134,-500.0,0.00017808,2]
[403586925,1769389906144,-500.0,0.00017808,2]
[403586926,1769389906154,-500.0,0.00017808,2]
[403586927,1769389906163,-506.00137505,0.00017808,2]
[403586928,1769389906173,-500.0,0.00017808,2]
[403586929,1769389906184,-500.0,0.00017808,2]
[403586930,1769389906194,-500.0,0.00017808,2]
[403586931,1769389906204,-500.0,0.00017808,2]
[403586932,1769389906214,-500.0,0.00017808,2]
[403586933,1769389906224,-500.0,0.00017808,2]
[403586934,1769389906234,-500.0,0.00017808,2]
[403586935,1769389906245,-500.0,0.00017808,2]
[403586936,1769389906256,-416.16185171,0.00017808,2]
[403586937,1769389906266,-500.0,0.00017808,2]
[403586938,1769389906279,-500.0,0.00017808,2]
[403586939,1769389906289,-517.18,0.00017808,2]
[403586940,1769389906300,-500.0,0.00017808,2]
[403586941,1769389906311,-302.67,0.00017808,2]
[403586942,1769389906320,-1000.0,0.00017808,2]
[403586943,1769389906330,-150.0,0.00017811,2]
[403586944,1769389906339,-2524.12349124,0.0001782,2]
[403586945,1769389906349,-25000.0,0.00017821,3]
[403586946,1769389906359,-952.63336648,0.00017824,2]
[403586947,1769389906369,-194.72792766,0.00017824,2]
[403586948,1769389906389,-151.0,0.00017824,2]
[403586949,1769389906399,-25000.0,0.0001783,3]
[403586950,1769389906409,-150.0,0.00017832,2]
[403586951,1769389906418,-1000.0,0.00017834,2]
[403586952,1769389906427,-500.0,0.00017836,2]
[403586953,1769389906436,-500.0,0.00017836,2]
[403586954,1769389906446,-500.0,0.00017836,2]
[403586955,1769389906457,-500.0,0.00017836,2]
[403586956,1769389906466,-25000.0,0.00017838,3]
[403586957,1769389906479,-25000.0,0.00017847,3]
[403586958,1769389906489,-289.8,0.00017849,2]
[403586959,1769389906498,-25000.0,0.00017856,3]
[403586960,1769389906509,-150.0,0.00017857,2]
[403586961,1769389906521,-150.0,0.00017863,2]
[403586962,1769389906531,-500.0,0.00017863,2]
[403586963,1769389906540,-25000.0,0.00017865,3]
[403586964,1769389906550,-25000.0,0.00017865,3]
[403586965,1769389906559,-1827.70208889,0.00017873,2]
[403586966,1769389906570,-25000.0,0.00017874,3]
[403586967,1769389906579,-25000.0,0.00017874,3]
[403586968,1769389906589,-25000.0,0.00017874,3]
[403586969,1769389906599,-500.0,0.00017882,2]
[403586970,1769389906608,-500.0,0.00017882,2]
[403586971,1769389906617,-500.0,0.00017882,2]
[403586972,1769389906627,-500.0,0.00017882,2]
[403586973,1769389906636,-500.0,0.00017882,2]
[403586974,1769389906645,-500.0,0.00017882,2]
[403586975,1769389906655,-500.0,0.00017882,2]
[403586976,1769389906663,-500.0,0.00017882,2]
[403586977,1769389906673,-500.0,0.00017882,2]
[403586978,1769389906682,-500.0,0.00017882,2]
[403586979,1769389906691,-500.0,0.00017882,2]
[403586980,1769389906701,-500.0,0.00017882,2]
[403586981,1769389906710,-500.0,0.00017882,2]
[403586982,1769389906719,-500.0,0.00017882,2]
[403586983,1769389906728,-500.0,0.00017882,2]
[403586984,1769389906737,-500.0,0.00017882,2]
[403586985,1769389906747,-500.0,0.00017882,2]
[403586986,1769389906756,-500.0,0.00017882,2]
[403586987,1769389906765,-500.0,0.00017882,2]
[403586988,1769389906776,-500.0,0.00017882,2]
[403586989,1769389906785,-500.0,0.00017882,2]
[403586990,1769389906795,-500.0,0.00017882,2]
[403586991,1769389906805,-500.0,0.00017882,2]
[403586992,1769389906815,-500.0,0.00017882,2]
[403586993,1769389906824,-500.0,0.00017882,2]
[403586994,1769389906833,-500.0,0.00017882,2]
[403586995,1769389906842,-500.0,0.00017882,2]
[403586996,1769389906852,-500.0,0.00017882,2]
[403586997,1769389906862,-500.0,0.00017882,2]
[403586998,1769389906875,-500.0,0.00017882,2]
[403586999,1769389906884,-500.0,0.00017882,2]
[403587000,1769389906893,-500.0,0.00017882,2]
[403587001,1769389906902,-500.0,0.00017882,2]
[403587002,1769389906912,-500.0,0.00017882,2]
[403587003,1769389906922,-500.0,0.00017882,2]
[403587004,1769389906931,-500.0,0.00017882,2]
[403587005,1769389906940,-500.0,0.00017882,2]
[403587006,1769389906950,-500.0,0.00017882,2]
[403587007,1769389906959,-500.0,0.00017882,2]
[403587008,1769389906969,-500.0,0.00017882,2]
[403587009,1769389906979,-500.0,0.00017882,2]
[403587010,1769389906988,-500.0,0.00017882,2]
[403587011,1769389906997,-500.0,0.00017882,2]
[403587012,1769389907006,-500.0,0.00017882,2]
[403587013,1769389907018,-500.0,0.00017882,2]
[403587014,1769389907032,-500.0,0.00017882,2]
[403587015,1769389907042,-500.0,0.00017882,2]
[403587016,1769389907051,-500.0,0.00017882,2]
[403587017,1769389907062,-500.0,0.00017882,2]
[403587018,1769389907072,-500.0,0.00017882,2]
[403587019,1769389907081,-500.0,0.00017882,2]
[403587020,1769389907091,-500.0,0.00017882,2]
[403587021,1769389907100,-500.0,0.00017882,2]
[403587022,1769389907110,-500.0,0.00017882,2]
[403587023,1769389907120,-500.0,0.00017882,2]
[403587024,1769389907129,-500.0,0.00017882,2]
[403587025,1769389907138,-500.0,0.00017882,2]
[403587026,1769389907148,-500.0,0.00017882,2]
[403587027,1769389907401,-500.0,0.00017882,2]
[403587028,1769389907411,-500.0,0.00017882,2]
[403587029,1769389907421,-500.0,0.00017882,2]
[403587030,1769389907430,-500.0,0.00017882,2]
[403587031,1769389907439,-500.0,0.00017882,2]
[403587032,1769389907449,-500.0,0.00017882,2]
[403587033,1769389907459,-500.0,0.00017882,2]
[403587034,1769389907469,-500.0,0.00017882,2]
[403587035,1769389907479,-500.0,0.00017882,2]
[403587036,1769389907488,-500.0,0.00017882,2]
[403587037,1769389907497,-500.0,0.00017882,2]
[403587038,1769389907507,-500.0,0.00017882,2]
[403587039,1769389907516,-500.0,0.00017882,2]
[403587040,1769389907528,-500.0,0.00017882,2]
[403587041,1769389907537,-500.0,0.00017882,2]
[403587042,1769389907547,-500.0,0.00017882,2]
[403587043,1769389907556,-500.0,0.00017882,2]
[403587044,1769389907566,-500.0,0.00017882,2]
[403587045,1769389907576,-500.0,0.00017882,2]
[403587046,1769389907588,-500.0,0.00017882,2]
[403587047,1769389907598,-500.0,0.00017882,2]
[403587048,1769389907607,-500.0,0.00017882,2]
[403587049,1769389907616,-500.0,0.00017882,2]
[403587050,1769389907626,-500.0,0.00017882,2]
[403587051,1769389907635,-500.0,0.00017882,2]
[403587052,1769389907644,-500.0,0.00017882,2]
[403587053,1769389907653,-500.0,0.00017882,2]
[403587054,1769389907662,-500.0,0.00017882,2]
[403587055,1769389907672,-500.0,0.00017882,2]
[403587056,1769389907682,-500.0,0.00017882,2]
[403587057,1769389907691,-500.0,0.00017882,2]
[403587058,1769389907700,-500.0,0.00017882,2]
[403587059,1769389907709,-500.0,0.00017882,2]
[403587060,1769389907718,-500.0,0.00017882,2]
[403587061,1769389907728,-500.0,0.00017882,2]
[403587062,1769389907737,-500.0,0.00017882,2]
[403587063,1769389907748,-500.0,0.00017882,2]
[403587064,1769389907757,-500.0,0.00017882,2]
[403587065,1769389907766,-500.0,0.00017882,2]
[403587066,1769389907778,-500.0,0.00017882,2]
[403587067,1769389907787,-500.0,0.00017882,2]
[403587068,1769389907796,-500.0,0.00017882,2]
[403587069,1769389907806,-500.0,0.00017882,2]
[403587070,1769389907814,-500.0,0.00017882,2]
[403587071,1769389907823,-500.0,0.00017882,2]
[403587072,1769389907832,-500.0,0.00017882,2]
[403587073,1769389907842,-500.0,0.00017882,2]
[403587074,1769389907851,-500.0,0.00017882,2]
[403587075,1769389907860,-500.0,0.00017882,2]
[403587076,1769389907869,-500.0,0.00017882,2]
[403587077,1769389907878,-500.0,0.00017882,2]
[403587078,1769389907893,-500.0,0.00017882,2]
[403587079,1769389907914,-500.0,0.00017882,2]
[403587080,1769389907927,-500.0,0.00017882,2]
[403587081,1769389907936,-500.0,0.00017882,2]
[403587082,1769389907945,-500.0,0.00017882,2]
[403587083,1769389907954,-500.0,0.00017882,2]
[403587084,1769389907963,-500.0,0.00017882,2]
[403587085,1769389907972,-500.0,0.00017882,2]
[403587086,1769389907980,-500.0,0.00017882,2]
[403587087,1769389907989,-500.0,0.00017882,2]
[403587088,1769389907999,-500.0,0.00017882,2]
[403587089,1769389908009,-500.0,0.00017882,2]
[403587090,1769389908019,-500.0,0.00017882,2]
[403587091,1769389908031,-500.0,0.00017882,2]
[403587092,1769389908042,-500.0,0.00017882,2]
[403587093,1769389908051,-500.0,0.00017882,2]
[403587094,1769389908063,-500.0,0.00017882,2]
[403587095,1769389908074,-531.0,0.00017882,2]
[403587096,1769389908083,-500.0,0.00017882,2]
[403587097,1769389908092,-500.0,0.00017882,2]
[403587098,1769389908102,-500.0,0.00017882,2]
[403587099,1769389908113,-500.0,0.00017882,2]
[403587100,1769389908122,-500.0,0.00017882,2]
[403587101,1769389908132,-500.0,0.00017882,2]
[403587102,1769389908141,-500.0,0.00017882,2]
[403587103,1769389908151,-500.0,0.00017882,2]
[403587104,1769389908160,-500.0,0.00017882,2]
[403587105,1769389908169,-500.0,0.00017882,2]
[403587106,1769389908179,-500.0,0.00017882,2]
[403587107,1769389908189,-500.0,0.00017882,2]
[403587108,1769389908199,-500.0,0.00017882,2]
[403587109,1769389908209,-500.0,0.00017882,2]
[403587110,1769389908219,-500.0,0.00017882,2]
[403587111,1769389908229,-500.0,0.00017882,2]
[403587112,1769389908238,-754.0,0.00017882,2]
[403587113,1769389908248,-500.0,0.00017882,2]
[403587114,1769389908258,-500.0,0.00017882,2]
[403587115,1769389908267,-500.0,0.00017882,2]
[403587116,1769389908277,-500.0,0.00017882,2]
[403587117,1769389908287,-500.0,0.00017882,2]
[403587118,1769389908297,-500.0,0.00017882,2]
[403587119,1769389908307,-500.0,0.00017882,2]
[403587120,1769389908318,-500.0,0.00017882,2]
[403587121,1769389908328,-500.0,0.00017882,2]
[403587122,1769389908338,-500.0,0.00017882,2]
[403587123,1769389908349,-500.0,0.00017882,2]
[403587124,1769389908359,-500.0,0.00017882,2]
[403587125,1769389908368,-530.0,0.00017882,2]
[403587126,1769389908378,-500.0,0.00017882,2]
[403587127,1769389908396,-500.0,0.00017882,2]
[403587128,1769389908407,-500.0,0.00017882,2]
[403587129,1769389908417,-500.0,0.00017882,2]
[403587130,1769389908427,-500.0,0.00017882,2]
[403587131,1769389908437,-500.0,0.00017882,2]
[403587132,1769389908446,-500.0,0.00017882,2]
[403587133,1769389908457,-500.0,0.00017882,2]
[403587134,1769389908467,-500.0,0.00017882,2]
[403587135,1769389908476,-500.0,0.00017882,2]
[403587136,1769389908487,-500.0,0.00017882,2]
[403587137,1769389908497,-500.0,0.00017882,2]
[403587138,1769389908507,-500.0,0.00017882,2]
[403587139,1769389908517,-500.0,0.00017882,2]
[403587140,1769389908528,-500.0,0.00017882,2]
[403587141,1769389908539,-500.0,0.00017882,2]
[403587142,1769389908549,-500.0,0.00017882,2]
[403587143,1769389908559,-500.0,0.00017882,2]
[403587144,1769389908569,-500.0,0.00017882,2]
[403587145,1769389908579,-500.0,0.00017882,2]
[403587146,1769389908589,-500.0,0.00017882,2]
[403587147,1769389908599,-500.0,0.00017882,2]
[403587148,1769389908608,-500.0,0.00017882,2]
[403587149,1769389908618,-500.0,0.00017882,2]
[403587150,1769389908627,-500.0,0.00017882,2]
[403587151,1769389908637,-500.0,0.00017882,2]
[403587152,1769389908647,-500.0,0.00017882,2]
[403587153,1769389908656,-500.0,0.00017882,2]
[403587154,1769389908665,-500.0,0.00017882,2]
[403587155,1769389908674,-500.0,0.00017882,2]
[403587156,1769389908683,-500.0,0.00017882,2]
[403587157,1769389908692,-500.0,0.00017882,2]
[403587158,1769389908701,-500.0,0.00017882,2]
[403587159,1769389908711,-500.0,0.00017882,2]
[403587160,1769389908720,-500.0,0.00017882,2]
[403587161,1769389908730,-500.0,0.00017882,2]
[403587162,1769389908739,-500.0,0.00017882,2]
[403587163,1769389908748,-500.0,0.00017882,2]
[403587164,1769389908757,-500.0,0.00017882,2]
[403587165,1769389908767,-500.0,0.00017882,2]
[403587166,1769389908778,-500.0,0.00017882,2]
[403587167,1769389908787,-500.0,0.00017882,2]
[403587168,1769389908796,-500.0,0.00017882,2]
[403587169,1769389908806,-950.0,0.00017882,2]
[403587170,1769389908815,-539.0,0.00017882,2]
[403587171,1769389908824,-500.0,0.00017882,2]
[403587172,1769389908833,-975.0,0.00017882,2]
[403587173,1769389908843,-25000.0,0.00017882,3]
[403587174,1769389908852,-25000.0,0.00017882,3]
[403587175,1769389908861,-25000.0,0.00017882,3]
[403587176,1769389908871,-25000.0,0.00017882,3]
[403587177,1769389908880,-200.0,0.00017884,2]
[403587178,1769389908889,-172.1623687,0.00017885,3]
[403587179,1769389908898,-500.0,0.00017891,2]
[403587180,1769389908907,-500.0,0.00017891,2]
[403587181,1769389908916,-500.0,0.00017891,2]
[403587182,1769389908926,-500.0,0.00017891,2]
[403587183,1769389908935,-25000.0,0.00017891,3]
[403587184,1769389908944,-25000.0,0.00017891,3]
[403587185,1769389908954,-25000.0,0.00017891,3]
[403587186,1769389908964,-25000.0,0.00017891,3]
[403587187,1769389908973,-200.0,0.000179,2]
[403587188,1769389908982,-3158.83882608,0.000179,2]
[403587189,1769389908991,-5800.0,0.000179,2]
[403587190,1769389909000,-25000.0,0.000179,3]
[403587191,1769389909010,-25000.0,0.000179,3]
[403587192,1769389909019,-5800.0,0.000179,2]
[403587193,1769389909030,-500.0,0.000179,2]
[403587194,1769389909040,-25000.0,0.000179,3]
[403587195,1769389909050,-5800.0,0.000179,2]
[403587196,1769389909060,-223.87876231,0.000179,2]
[403587197,1769389909069,-225.57947572,0.000179,2]
[403587198,1769389909079,-433.62283719,0.000179,2]
[403587199,1769389909088,-553.94239634,0.000179,3]
[403587200,1769389909098,-424.44294105,0.000179,2]
[403587201,1769389909111,-25000.0,0.000179,3]
[403587202,1769389909121,-159.12038991,0.000179,2]
[403587203,1769389909131,-4997.80219607,0.000179,2]
[403587204,1769389909140,-159.12038991,0.000179,2]
[403587205,1769389909150,-159.12038991,0.000179,2]
[403587206,1769389909171,-159.12038991,0.000179,2]
[403587207,1769389909190,-159.12038991,0.000179,2]
[403587208,1769389909201,-159.12038991,0.000179,2]
[403587209,1769389909211,-500.0,0.000179,2]
[403587210,1769389909223,-500.0,0.000179,2]
[403587211,1769389909234,-500.0,0.000179,2]
[403587212,1769389909245,-500.0,0.000179,2]
[403587213,1769389909255,-500.0,0.000179,2]
[403587214,1769389909264,-500.0,0.000179,2]
[403587215,1769389909277,-500.0,0.000179,2]
[403587216,1769389909288,-500.0,0.000179,2]
[403587217,1769389909299,-500.0,0.000179,2]
[403587218,1769389909310,-500.0,0.000179,2]
[403587219,1769389909321,-500.0,0.000179,2]
[403587220,1769389909331,-500.0,0.000179,2]
[403587221,1769389909341,-500.0,0.000179,2]
[403587222,1769389909351,-500.0,0.000179,2]
[403587223,1769389909362,-500.0,0.000179,2]
[403587224,1769389909375,-500.0,0.000179,2]
[403587225,1769389909386,-500.0,0.000179,2]
[403587226,1769389909396,-500.0,0.000179,2]
[403587227,1769389909407,-500.0,0.000179,2]
[403587228,1769389909417,-500.0,0.000179,2]
[403587229,1769389909427,-500.0,0.000179,2]
[403587230,1769389909437,-500.0,0.000179,2]
[403587231,1769389909447,-500.0,0.000179,2]
[403587232,1769389909457,-500.0,0.000179,2]
[403587233,1769389909469,-500.0,0.000179,2]
[403587234,1769389909481,-500.0,0.000179,2]
[403587235,1769389909492,-500.0,0.000179,2]
[403587236,1769389909502,-500.0,0.000179,2]
[403587237,1769389909512,-500.0,0.000179,2]
[403587238,1769389909522,-500.0,0.000179,2]
[403587239,1769389909532,-500.0,0.000179,2]
[403587240,1769389909542,-500.0,0.000179,2]
[403587241,1769389909552,-500.0,0.000179,2]
[403587242,1769389909562,-500.0,0.000179,2]
[403587243,1769389909570,-500.0,0.000179,2]
[403587244,1769389909586,-500.0,0.000179,2]
[403587245,1769389909596,-500.0,0.000179,2]
[403587246,1769389909607,-500.0,0.000179,2]
[403587247,1769389909617,-277.89152344,0.000179,2]
[403587248,1769389909626,-1000.0,0.00017916,2]
[403587249,1769389909636,-150.0,0.00017918,2]
[403587250,1769389909646,-500.0,0.00017918,2]
[403587251,1769389909656,-10798.3924386,0.0001792,2]
[403587252,1769389909665,-289.8,0.00017924,2]
[403587253,1769389909674,-150.0,0.00017933,2]
[403587254,1769389909683,-151.0,0.00017945,2]
[403587255,1769389909693,-151.0,0.00017945,2]
[403587256,1769389909702,-151.0,0.00017945,2]
[403587257,1769389909711,-151.0,0.00017945,2]
[403587258,1769389909721,-151.0,0.00017945,2]
[403587259,1769389909731,-151.0,0.00017945,2]
[403587260,1769389909740,-151.0,0.00017945,2]
[403587261,1769389909749,-151.0,0.00017945,2]
[403587262,1769389909758,-186.62324098,0.00017945,2]
[403587263,1769389909768,-300.0,0.00017945,2]
[403587264,1769389909778,-500.0,0.00017945,2]
[403587265,1769389909792,-177.36277185,0.00017945,2]
[403587266,1769389909802,-500.0,0.00017945,2]
[403587267,1769389909811,-150.0,0.00017949,2]
[403587268,1769389909820,-300.0,0.0001797,2]
[403587269,1769389909830,-400.0,0.0001797,2]
[403587270,1769389909839,-300.0,0.0001797,2]
[403587271,1769389909849,-400.0,0.0001797,2]
[403587272,1769389909858,-397.30389429,0.0001797,2]
[403587273,1769389909867,-400.0,0.0001797,2]
[403587274,1769389909877,-400.0,0.0001797,2]
[403587275,1769389909888,-400.0,0.0001797,2]
[403587276,1769389909897,-402.43614103,0.0001797,2]
[403587277,1769389909906,-3158.83882605,0.00017971,2]
[403587278,1769389909916,-3680.0,0.00017972,2]
[403587279,1769389909926,-151.06473399,0.00017972,2]
[403587280,1769389909936,-500.0,0.00017972,2]
[403587281,1769389909945,-1500.0,0.0001798,2]
[403587282,1769389909955,-1500.0,0.0001798,2]
[403587283,1769389909964,-1500.0,0.0001798,2]
[403587284,1769389909974,-1500.0,0.0001798,2]
[403587285,1769389909987,-1062.59372992,0.0001798,2]
[403587286,1769389909997,-1500.0,0.0001798,2]
[403587287,1769389910007,-1500.0,0.0001798,2]
[403587288,1769389910017,-324.45487764,0.0001798,2]
[403587289,1769389910030,-500.0,0.0001799,2]
[403587290,1769389910039,-28031.49866311,0.0001799,2]
[403587291,1769389910049,-1000.0,0.0001799,2]
[403587292,1769389910058,-1000.0,0.00017996,2]
[403587293,1769389910069,-151.6638958,0.00017999,2]
[403587294,1769389910079,-507751.63545232,0.00018,2]
[403587295,1769389911008,-449.495,0.00018,2]
[403587296,1769389911052,-186360.17483915,0.00018,2]
[403587297,1769389911082,-417.51432146,0.00018,2]
[403587298,1769389911093,-294.07200748,0.00018,2]
[403587299,1769389911105,-603.86400012,0.00018,2]
[403587300,1769389911138,-500.0,0.00016438,2]
[403587301,1769389911148,-31963.08421463,0.00018,2]
[403587302,1769389912110,-309.35,0.00015683,2]
[403587303,1769389912120,-35.28499176,0.00015753,2]
[403587304,1769389912131,-1201.76500824,0.00015753,2]
[403587305,1769389912141,-697.08239084,0.0001596,2]
[403587306,1769389912150,-500.0,0.00016438,2]
[403587307,1769389912160,-500.0,0.00016438,2]
[403587308,1769389912170,-500.0,0.00016438,2]
[403587309,1769389912180,-155.73017449,0.00016467,2]
[403587310,1769389912192,-153.61982551,0.00016467,2]
[403587311,1769389912201,-426.05390297,0.00016712,2]
[403587312,1769389912215,-73.94609703,0.00016712,2]
[403587313,1769389912224,-500.0,0.00016712,2]
[403587314,1769389912233,-500.0,0.00016712,2]
[403587315,1769389912242,-513.68989397,0.00016749,2]
[403587316,1769389912444,-53.31010603,0.00016749,2]
[403587317,1769389912458,-500.0,0.00016986,2]
[403587318,1769389912467,-555.05566421,0.00016986,2]
[403587319,1769389912479,-500.0,0.0001726,2]
[403587320,1769389912488,-500.0,0.00017534,2]
[403587321,1769389912497,-78.03374589,0.00017808,2]
[403587322,1769389912514,-309.35,0.00017251,2]
[403587323,1769389912525,-248.61001026,0.00017808,2]
[403587324,1769389912538,-173.35624385,0.00017808,2]
[403587325,1769389912547,-18644.17970758,0.00017856,3]
[403587326,1769389912559,-6355.82029242,0.00017856,3]
[403587327,1769389912568,-159.12038991,0.000179,2]
[403587328,1769389912578,-7119.6675249,0.00018,2]
[403587329,1769389912589,-424.00898094,0.00018,2]
[403587330,1769389912600,-521.50544742,0.00018,2]
[403587331,1769389912611,-1821.82014999,0.00018,2]
[403587332,1769389912630,-2511.8867267,0.00018,2]
[403587333,1769389912641,-4441.23959371,0.00018,2]
[403587334,1769389912652,-286722.89465549,0.00018,2]
[403587335,1769389912663,-245430.91884653,0.00018,2]
[403587336,1769389912672,-204768.03276494,0.00018,2]
[403587337,1769389912681,-40538.93143403,0.00018,2]
[403587338,1769389912692,-404.73403491,0.00018,2]
[403587340,1769390169417,-173.19096885,0.00013431,2]
[403587341,1769390169439,-173.19096885,0.00013431,2]
[403587342,1769390169460,-173.19096885,0.00013431,2]
[403587343,1769390169480,-159.44388383,0.00013431,2]
[403587344,1769390169501,-636.10376161,0.00013449,2]
[403587345,1769390184371,-1315.12055199,0.00013449,2]
[403587346,1769390251546,-883.0,0.00013449,2]
[403587347,1769390272698,-0.7056864,0.00013449,2]
[403587348,1769390272719,-1200.0,0.00013887,2]
[403587349,1769390272739,-149.2943136,0.00013887,2]
[403587350,1769390293826,158.87,0.00011053,2]
[403587351,1769390293851,3.03,0.00011053,2]
[403587353,1769390356544,330.0,0.00016548,61]
[403587355,1769390846762,-150.0,0.00043433,10]
[403587369,1769391032404,-529.25295716,0.00014506,2]
[403587370,1769391032416,-325.87,0.00014812,2]
[403587371,1769391032427,-150.0,0.0001486,2]
[403587372,1769391032440,-200.0,0.00014911,2]
[403587373,1769391032451,-150.0,0.00014932,2]
[403587374,1769391032465,-130.97939938,0.00015,2]
[403587375,1769391032510,-520.49846645,0.00015,2]
[403587376,1769391032523,-681.8392239,0.00015,2]
[403587377,1769391032535,-1200.0,0.00015003,2]
[403587378,1769391032546,-1411.46939214,0.00015004,2]
[403587379,1769391032559,-632.81196399,0.00015004,2]
[403587380,1769391032573,-969.61981694,0.00015004,2]
[403587381,1769391032692,-454.69711136,0.00015004,2]
[403587382,1769391032706,-103.03171557,0.00015004,2]
[403587383,1769391032718,-166.01,0.00015041,2]
[403587384,1769391032730,-300.0,0.00015043,2]
[403587386,1769391032742,-300.0,0.00015043,2]
[403587387,1769391032754,-535.0,0.00015044,2]
[403587388,1769391032765,-1046.90199273,0.00015045,2]
[403587389,1769391032791,-290.05797524,0.00015045,2]
[403587390,1769391032805,-1869.03003203,0.00015045,2]
[403587391,1769391032817,-2192.03,0.00015079,2]
[403587392,1769391032828,-1361.66502412,0.00015655,2]
[403587393,1769391032843,-2746.54377588,0.00015655,2]
[403587394,1769391032855,-154.61,0.00015668,2]
[403587395,1769391032866,-151.0,0.00015672,2]
[403587396,1769391032877,-582.48232737,0.00015761,2]
[403587397,1769391032888,-33.475257,0.00015791,2]
[403587398,1769391032903,-1719.024743,0.00015791,2]
[403587399,1769391032914,-300.0,0.00015799,2]
[403587400,1769391032925,-323.33775642,0.000158,2]
[403587401,1769391032937,-335.1582763,0.000158,2]
[403587402,1769391032948,-164.69733899,0.000158,2]
[403587403,1769391032959,-500.0,0.000158,2]
[403587404,1769391032970,-203.34518355,0.000158,2]